Workbook

Sheet ТОТАЛ+ИСХОД
D1: поражений | E1: 20 | F1: побед | G1: 0
D2: прибыль | E2: =SUM(B:B) -> -80710 | F2: доходность | G2: 29.4875 | H2: % выигранных матчей | I2: 0 | P2: сумма ставок | Q2: =SUM(A:A) -> 437000
A3: ставка | B3: прибыль/убыток | C3: Матчей | D3: кф
A4: 1000 | B4: =A4*D4-A4 -> -1000 | C4: п | D4: 0 | E4: ОКТЯБРЬ
A5: 1000 | B5: =A5*D5-A5 -> -1000 | C5: п | D5: 0
A6: 1000 | B6: -1000 | C6: п | D6: 0
A7: 1000 | B7: -1000 | C7: п | D7: 0
A8: 1000 | B8: 102590 | C8: п | D8: 103.59
A9: 1000 | B9: -1000 | C9: п | D9: 0
A10: 1000 | B10: -1000 | C10: п | D10: 0
A11: 1000 | B11: -1000 | C11: п | D11: 0
A12: 1000 | B12: -1000 | C12: п | D12: 0
A13: 1000 | B13: -1000 | C13: п | D13: 0
A14: 1000 | B14: -1000 | C14: п | D14: 0
A15: 1000 | B15: -1000 | C15: п | D15: 0
A16: 1000 | B16: -1000 | C16: п | D16: 0
A17: 1000 | B17: -1000 | C17: п | D17: 0
A18: 1000 | B18: -1000 | C18: п | D18: 0
A19: 1000 | B19: -1000 | C19: п | D19: 0
A20: 1000 | B20: -1000 | C20: п | D20: 0
A21: 1000 | B21: -1000 | C21: п | D21: 0
A22: 1000 | B22: -1000 | C22: п | D22: 0
A23: 1000 | B23: -1000 | C23: п | D23: 0
A24: 1000 | B24: -1000 | C24: п | D24: 0 | E24: НОЯБРЬ
A25: 1000 | B25: -1000 | C25: п | D25: 0
A26: 1000 | B26: -1000 | C26: п | D26: 0
A27: 1000 | B27: -1000 | C27: п | D27: 0
A28: 1000 | B28: -1000 | C28: п | D28: 0
A29: 1000 | B29: -1000 | C29: п | D29: 0
A30: 1000 | B30: -1000 | C30: п | D30: 0
A31: 1000 | B31: -1000 | C31: п | D31: 0
A32: 1000 | B32: -1000 | C32: п | D32: 0
A33: 1000 | B33: -1000 | C33: п | D33: 0
A34: 1000 | B34: -1000 | C34: п | D34: 0
A35: 1000 | B35: -1000 | C35: п | D35: 0
A36: 1000 | B36: -1000 | C36: п | D36: 0
A37: 1000 | B37: -1000 | C37: п | D37: 0
A38: 1000 | B38: -1000 | C38: п | D38: 0
A39: 1000 | B39: -1000 | C39: п | D39: 0
A40: 1000 | B40: -1000 | C40: п | D40: 0
A41: 1000 | B41: -1000 | C41: п | D41: 0
A42: 1000 | B42: -1000 | C42: п | D42: 0
A43: 1000 | B43: -1000 | C43: п | D43: 0
A44: 1000 | B44: -1000 | C44: п | D44: 0
A45: 1000 | B45: -1000 | C45: п | D45: 0
A46: 1000 | B46: -1000 | C46: п | D46: 0
A47: 1000 | B47: -1000 | C47: п | D47: 0
A48: 1000 | B48: -1000 | C48: п | D48: 0
A49: 1000 | B49: -1000 | C49: п | D49: 0
A50: 1000 | B50: -1000 | C50: п | D50: 0
A51: 1000 | B51: -1000 | C51: п | D51: 0
A52: 1000 | B52: -1000 | C52: п | D52: 0
A53: 1000 | B53: -1000 | C53: п | D53: 0 | E53: ДЕКАБРЬ
A54: 1000 | B54: -1000 | C54: п | D54: 0
A55: 1000 | B55: -1000 | C55: п | D55: 0
A56: 1000 | B56: -1000 | C56: п | D56: 0
A57: 1000 | B57: -1000 | C57: п | D57: 0
A58: 1000 | B58: -1000 | C58: п | D58: 0
A59: 1000 | B59: -1000 | C59: п | D59: 0
A60: 1000 | B60: -1000 | C60: п | D60: 0
A61: 1000 | B61: -1000 | C61: п | D61: 0
A62: 1000 | B62: -1000 | C62: п | D62: 0
A63: 1000 | B63: -1000 | C63: п | D63: 0
A64: 1000 | B64: -1000 | C64: п | D64: 0
A65: 1000 | B65: -1000 | C65: п | D65: 0
A66: 1000 | B66: -1000 | C66: п | D66: 0
A67: 1000 | B67: -1000 | C67: п | D67: 0
A68: 1000 | B68: -1000 | C68: п | D68: 0
A69: 1000 | B69: =A69*D69-A69 -> -1000 | C69: п | D69: 0
A70: 1000 | B70: -1000 | C70: п | D70: 0
A71: 1000 | B71: -1000 | C71: п | D71: 0
A72: 1000 | B72: -1000 | C72: п | D72: 0
A73: 1000 | B73: -1000 | C73: п | D73: 0
A74: 1000 | B74: -1000 | C74: п | D74: 0
A75: 1000 | B75: -1000 | C75: п | D75: 0
A76: 1000 | B76: -1000 | C76: п | D76: 0
A77: 1000 | B77: -1000 | C77: п | D77: 0
A78: 1000 | B78: -1000 | C78: п | D78: 0
A79: 1000 | B79: -1000 | C79: п | D79: 0
A80: 1000 | B80: -1000 | C80: п | D80: 0
A81: 1000 | B81: -1000 | C81: п | D81: 0
A82: 1000 | B82: -1000 | C82: п | D82: 0
A83: 1000 | B83: -1000 | C83: п | D83: 0
A84: 1000 | B84: -1000 | C84: п | D84: 0 | E84: ЯНВАРЬ
A85: 1000 | B85: -1000 | C85: п | D85: 0
A86: 1000 | B86: -1000 | C86: п | D86: 0
A87: 1000 | B87: -1000 | C87: п | D87: 0
A88: 1000 | B88: -1000 | C88: п | D88: 0
A89: 1000 | B89: -1000 | C89: п | D89: 0
A90: 1000 | B90: -1000 | C90: п | D90: 0
A91: 1000 | B91: -1000 | C91: п | D91: 0
A92: 1000 | B92: -1000 | C92: п | D92: 0
A93: 1000 | B93: -1000 | C93: п | D93: 0
A94: 1000 | B94: -1000 | C94: п | D94: 0
A95: 1000 | B95: -1000 | C95: п | D95: 0
A96: 1000 | B96: -1000 | C96: п | D96: 0
A97: 1000 | B97: -1000 | C97: п | D97: 0
A98: 1000 | B98: -1000 | C98: п | D98: 0
A99: 1000 | B99: -1000 | C99: п | D99: 0
A100: 1000 | B100: -1000 | C100: п | D100: 0
A101: 1000 | B101: -1000 | C101: п | D101: 0
A102: 1000 | B102: -1000 | C102: п | D102: 0
A103: 1000 | B103: -1000 | C103: п | D103: 0
A104: 1000 | B104: -1000 | C104: п | D104: 0
A105: 1000 | B105: -1000 | C105: п | D105: 0
A106: 1000 | B106: -1000 | C106: п | D106: 0
A107: 1000 | B107: -1000 | C107: п | D107: 0
A108: 2000 | B108: -2000 | C108: п | D108: 0
A109: 2000 | B109: -2000 | C109: п | D109: 0
A110: 2000 | B110: -2000 | C110: п | D110: 0
A111: 2000 | B111: -2000 | C111: п | D111: 0
A112: 2000 | B112: -2000 | C112: п | D112: 0
A113: 2000 | B113: -2000 | C113: п | D113: 0
A114: 2000 | B114: -2000 | C114: п | D114: 0
A115: 2000 | B115: -2000 | C115: п | D115: 0 | E115: ФЕВРАЛЬ
A116: 2000 | B116: -2000 | C116: п | D116: 0
A117: 2000 | B117: -2000 | C117: п | D117: 0
A118: 2000 | B118: -2000 | C118: п | D118: 0
A119: 2000 | B119: -2000 | C119: п | D119: 0
A120: 2000 | B120: -2000 | C120: п | D120: 0
A121: 2000 | B121: -2000 | C121: п | D121: 0
A122: 2000 | B122: -2000 | C122: п | D122: 0
A123: 2000 | B123: -2000 | C123: п | D123: 0
A124: 2000 | B124: -2000 | C124: п | D124: 0
A125: 2000 | B125: -2000 | C125: п | D125: 0
A126: 2000 | B126: -2000 | C126: п | D126: 0
A127: 2000 | B127: -2000 | C127: п | D127: 0
A128: 2000 | B128: -2000 | C128: п | D128: 0
A129: 2000 | B129: -2000 | C129: п | D129: 0
A130: 2000 | B130: -2000 | C130: п | D130: 0
A131: 2000 | B131: -2000 | C131: п | D131: 0
A132: 2000 | B132: -2000 | C132: п | D132: 0
A133: 2000 | B133: =A133*D133-A133 -> -2000 | C133: п | D133: 0
A134: 2000 | B134: -2000 | C134: п | D134: 0
A135: 2000 | B135: -2000 | C135: п | D135: 0
A136: 2000 | B136: -2000 | C136: п | D136: 0
A137: 2000 | B137: -2000 | C137: п | D137: 0
A138: 2000 | B138: -2000 | C138: п | D138: 0
A139: 2000 | B139: -2000 | C139: п | D139: 0
A140: 2000 | B140: -2000 | C140: п | D140: 0
A141: 2000 | B141: -2000 | C141: п | D141: 0
A142: 2000 | B142: -2000 | C142: п | D142: 0
A143: 2000 | B143: -2000 | C143: п | D143: 0 | E143: МАРТ
A144: 2000 | B144: -2000 | C144: п | D144: 0
A145: 2000 | B145: -2000 | C145: п | D145: 0
A146: 2000 | B146: -2000 | C146: п | D146: 0
A147: 2000 | B147: -2000 | C147: п | D147: 0
A148: 2000 | B148: -2000 | C148: п | D148: 0
A149: 2000 | B149: -2000 | C149: п | D149: 0
A150: 2000 | B150: -2000 | C150: п | D150: 0
A151: 2000 | B151: -2000 | C151: п | D151: 0
A152: 2000 | B152: -2000 | C152: п | D152: 0
A153: 2000 | B153: -2000 | C153: п | D153: 0
A154: 2000 | B154: -2000 | C154: п | D154: 0
A155: 2000 | B155: -2000 | C155: п | D155: 0
A156: 2000 | B156: -2000 | C156: п | D156: 0
A157: 2000 | B157: -2000 | C157: п | D157: 0
A158: 2000 | B158: -2000 | C158: п | D158: 0
A159: 2000 | B159: -2000 | C159: п | D159: 0
A160: 2000 | B160: -2000 | C160: п | D160: 0
A161: 2000 | B161: -2000 | C161: п | D161: 0
A162: 2000 | B162: -2000 | C162: п | D162: 0
A163: 2000 | B163: -2000 | C163: п | D163: 0
A164: 2000 | B164: -2000 | C164: п | D164: 0
A165: 2000 | B165: -2000 | C165: п | D165: 0
A166: 2000 | B166: -2000 | C166: п | D166: 0
A167: 2000 | B167: -2000 | C167: п | D167: 0
A168: 2000 | B168: -2000 | C168: п | D168: 0
A169: 2000 | B169: -2000 | C169: п | D169: 0
A170: 2000 | B170: -2000 | C170: п | D170: 0
A171: 2000 | B171: -2000 | C171: п | D171: 0
A172: 2000 | B172: -2000 | C172: п | D172: 0
A173: 2000 | B173: -2000 | C173: п | D173: 0
A174: 2000 | B174: -2000 | C174: п | D174: 0 | E174: АПРЕЛЬ
A175: 2000 | B175: -2000 | C175: п | D175: 0
A176: 2000 | B176: -2000 | C176: п | D176: 0
A177: 2000 | B177: -2000 | C177: п | D177: 0
A178: 2000 | B178: -2000 | C178: п | D178: 0
A179: 2000 | B179: -2000 | C179: п | D179: 0
A180: 2000 | B180: -2000 | C180: п | D180: 0
A181: 2000 | B181: -2000 | C181: п | D181: 0
A182: 2000 | B182: -2000 | C182: п | D182: 0
A183: 2000 | B183: -2000 | C183: п | D183: 0
A184: 2000 | B184: -2000 | C184: п | D184: 0
A185: 2000 | B185: -2000 | C185: п | D185: 0
A186: 2000 | B186: -2000 | C186: п | D186: 0
A187: 2000 | B187: -2000 | C187: п | D187: 0
A188: 2000 | B188: -2000 | C188: п | D188: 0
A189: 2000 | B189: -2000 | C189: п | D189: 0
A190: 2000 | B190: -2000 | C190: п | D190: 0
A191: 2000 | B191: 250700 | C191: п | D191: 126.35
A192: 2000 | B192: -2000 | C192: п | D192: 0
A193: 2000 | B193: -2000 | C193: п | D193: 0
A194: 2000 | B194: -2000 | C194: п | D194: 0
A195: 2000 | B195: -2000 | C195: п | D195: 0
A196: 2000 | B196: -2000 | C196: п | D196: 0
A197: 2000 | B197: =A197*D197-A197 -> -2000 | C197: п | D197: 0
A198: 2000 | B198: -2000 | C198: п | D198: 0
A199: 2000 | B199: -2000 | C199: п | D199: 0
A200: 2000 | B200: -2000 | C200: п | D200: 0
... 124 more rows

Sheet ТОТАЛ 100+
D1: поражений | E1: =COUNTIF(C4:C439,"п") -> 433 | F1: побед | G1: =COUNTIF(C4:C439,"В") -> 3
D2: прибыль | E2: =SUM(B:B) -> -497070 | F2: доходность | G2: =E2/Q2*100 -> -52.71155885 | H2: % выигранных матчей | I2: =G1/SUM(E1+G1)*100 -> 0.6880733945 | P2: сумма ставок | Q2: =SUM(A:A) -> 943000
A3: ставка | B3: прибыль/убыток | C3: итог | D3: кф
A4: 1000 | B4: =D4*A4-A4 -> -1000 | C4: П | D4: 0 | E4: АПРЕЛЬ
A5: 1000 | B5: =D5*A5-A5 -> -1000 | C5: П | D5: 0
A6: 1000 | B6: -1000 | C6: П | D6: 0
A7: 1000 | B7: -1000 | C7: П | D7: 0
A8: 1000 | B8: 101900 | C8: В | D8: 102.9
A9: 1000 | B9: -1000 | C9: П | D9: 0
A10: 1000 | B10: -1000 | C10: П | D10: 0
A11: 1000 | B11: 112830 | C11: В | D11: 113.83
A12: 1000 | B12: -1000 | C12: П | D12: 0 | E12: МАЙ
A13: 1000 | B13: -1000 | C13: П | D13: 0
A14: 1000 | B14: -1000 | C14: П | D14: 0
A15: 1000 | B15: -1000 | C15: П | D15: 0
A16: 1000 | B16: -1000 | C16: П | D16: 0
A17: 1000 | B17: -1000 | C17: П | D17: 0
A18: 1000 | B18: -1000 | C18: П | D18: 0
A19: 1000 | B19: -1000 | C19: П | D19: 0
A20: 1000 | B20: -1000 | C20: П | D20: 0
A21: 1000 | B21: -1000 | C21: П | D21: 0
A22: 1000 | B22: -1000 | C22: П | D22: 0
A23: 1000 | B23: -1000 | C23: П | D23: 0
A24: 1000 | B24: -1000 | C24: П | D24: 0
A25: 1000 | B25: -1000 | C25: П | D25: 0
A26: 1000 | B26: -1000 | C26: П | D26: 0
A27: 1000 | B27: -1000 | C27: П | D27: 0
A28: 1000 | B28: -1000 | C28: П | D28: 0
A29: 1000 | B29: -1000 | C29: П | D29: 0
A30: 1000 | B30: -1000 | C30: П | D30: 0
A31: 1000 | B31: -1000 | C31: П | D31: 0
A32: 1000 | B32: -1000 | C32: П | D32: 0
A33: 1000 | B33: -1000 | C33: П | D33: 0
A34: 1000 | B34: -1000 | C34: П | D34: 0
A35: 1000 | B35: -1000 | C35: П | D35: 0 | E35: ИЮНЬ
A36: 1000 | B36: -1000 | C36: П | D36: 0
A37: 1000 | B37: -1000 | C37: П | D37: 0
A38: 1000 | B38: -1000 | C38: П | D38: 0
A39: 1000 | B39: -1000 | C39: П | D39: 0
A40: 1000 | B40: -1000 | C40: П | D40: 0
A41: 1000 | B41: -1000 | C41: П | D41: 0
A42: 1000 | B42: -1000 | C42: П | D42: 0
A43: 1000 | B43: -1000 | C43: П | D43: 0
A44: 1000 | B44: -1000 | C44: П | D44: 0
A45: 1000 | B45: -1000 | C45: П | D45: 0
A46: 1000 | B46: -1000 | C46: П | D46: 0 | E46: ИЮЛЬ
A47: 1000 | B47: -1000 | C47: П | D47: 0
A48: 1000 | B48: -1000 | C48: П | D48: 0
A49: 1000 | B49: -1000 | C49: П | D49: 0
A50: 1000 | B50: -1000 | C50: П | D50: 0
A51: 1000 | B51: -1000 | C51: П | D51: 0
A52: 1000 | B52: -1000 | C52: П | D52: 0
A53: 1000 | B53: -1000 | C53: П | D53: 0
A54: 1000 | B54: -1000 | C54: П | D54: 0
A55: 1000 | B55: -1000 | C55: П | D55: 0
A56: 1000 | B56: -1000 | C56: П | D56: 0
A57: 1000 | B57: -1000 | C57: П | D57: 0
A58: 1000 | B58: -1000 | C58: П | D58: 0
A59: 1000 | B59: -1000 | C59: П | D59: 0
A60: 1000 | B60: -1000 | C60: П | D60: 0
A61: 1000 | B61: -1000 | C61: П | D61: 0
A62: 1000 | B62: -1000 | C62: П | D62: 0 | E62: АВГУСТ
A63: 1000 | B63: -1000 | C63: П | D63: 0
A64: 1000 | B64: -1000 | C64: П | D64: 0
A65: 1000 | B65: -1000 | C65: П | D65: 0
A66: 1000 | B66: -1000 | C66: П | D66: 0
A67: 1000 | B67: -1000 | C67: П | D67: 0
A68: 1000 | B68: -1000 | C68: П | D68: 0
A69: 1000 | B69: =D69*A69-A69 -> -1000 | C69: П | D69: 0
A70: 1000 | B70: -1000 | C70: П | D70: 0
A71: 1000 | B71: -1000 | C71: П | D71: 0
A72: 1000 | B72: -1000 | C72: П | D72: 0
A73: 1000 | B73: -1000 | C73: П | D73: 0
A74: 1000 | B74: -1000 | C74: П | D74: 0
A75: 1000 | B75: -1000 | C75: П | D75: 0
A76: 1000 | B76: -1000 | C76: П | D76: 0
A77: 1000 | B77: -1000 | C77: П | D77: 0
A78: 1000 | B78: -1000 | C78: П | D78: 0
A79: 1000 | B79: -1000 | C79: П | D79: 0
A80: 1000 | B80: -1000 | C80: П | D80: 0
A81: 1000 | B81: -1000 | C81: П | D81: 0
A82: 1000 | B82: -1000 | C82: П | D82: 0
A83: 1000 | B83: -1000 | C83: П | D83: 0
A84: 1000 | B84: -1000 | C84: П | D84: 0
A85: 1000 | B85: -1000 | C85: П | D85: 0
A86: 1000 | B86: -1000 | C86: П | D86: 0
A87: 1000 | B87: -1000 | C87: П | D87: 0
A88: 1000 | B88: -1000 | C88: П | D88: 0
A89: 1000 | B89: -1000 | C89: П | D89: 0
A90: 1000 | B90: -1000 | C90: П | D90: 0
A91: 1000 | B91: -1000 | C91: П | D91: 0
A92: 1000 | B92: -1000 | C92: П | D92: 0 | E92: СЕНТЯБРЬ
A93: 1000 | B93: -1000 | C93: П | D93: 0
A94: 1000 | B94: -1000 | C94: П | D94: 0
A95: 1000 | B95: -1000 | C95: П | D95: 0
A96: 1000 | B96: -1000 | C96: П | D96: 0
A97: 1000 | B97: -1000 | C97: П | D97: 0
A98: 1000 | B98: -1000 | C98: П | D98: 0
A99: 1000 | B99: -1000 | C99: П | D99: 0
A100: 1000 | B100: -1000 | C100: П | D100: 0
A101: 1000 | B101: -1000 | C101: П | D101: 0
A102: 2000 | B102: -2000 | C102: П | D102: 0
A103: 2000 | B103: -2000 | C103: П | D103: 0
A104: 2000 | B104: -2000 | C104: П | D104: 0
A105: 2000 | B105: -2000 | C105: П | D105: 0
A106: 2000 | B106: -2000 | C106: П | D106: 0
A107: 2000 | B107: -2000 | C107: П | D107: 0
A108: 2000 | B108: -2000 | C108: П | D108: 0
A109: 2000 | B109: -2000 | C109: П | D109: 0
A110: 2000 | B110: -2000 | C110: П | D110: 0
A111: 2000 | B111: -2000 | C111: П | D111: 0
A112: 2000 | B112: -2000 | C112: П | D112: 0
A113: 2000 | B113: -2000 | C113: П | D113: 0
A114: 2000 | B114: -2000 | C114: П | D114: 0
A115: 2000 | B115: -2000 | C115: П | D115: 0
A116: 2000 | B116: -2000 | C116: П | D116: 0
A117: 2000 | B117: 227200 | C117: В | D117: 114.6
A118: 1000 | B118: -1000 | C118: п | D118: 0
A119: 1000 | B119: -1000 | C119: п | D119: 0 | E119: ОКТЯБРЬ
A120: 1000 | B120: -1000 | C120: п | D120: 0
A121: 1000 | B121: -1000 | C121: п | D121: 0
A122: 1000 | B122: -1000 | C122: п | D122: 0
A123: 1000 | B123: -1000 | C123: п | D123: 0
A124: 1000 | B124: -1000 | C124: п | D124: 0
A125: 1000 | B125: -1000 | C125: п | D125: 0
A126: 1000 | B126: -1000 | C126: п | D126: 0
A127: 1000 | B127: -1000 | C127: п | D127: 0
A128: 1000 | B128: -1000 | C128: п | D128: 0
A129: 1000 | B129: -1000 | C129: п | D129: 0
A130: 1000 | B130: -1000 | C130: п | D130: 0
A131: 1000 | B131: -1000 | C131: п | D131: 0
A132: 1000 | B132: -1000 | C132: п | D132: 0
A133: 1000 | B133: =D133*A133-A133 -> -1000 | C133: п | D133: 0
A134: 1000 | B134: -1000 | C134: п | D134: 0
A135: 1000 | B135: -1000 | C135: п | D135: 0
A136: 1000 | B136: -1000 | C136: п | D136: 0
A137: 1000 | B137: -1000 | C137: п | D137: 0
A138: 1000 | B138: -1000 | C138: п | D138: 0
A139: 1000 | B139: -1000 | C139: п | D139: 0
A140: 1000 | B140: -1000 | C140: п | D140: 0
A141: 1000 | B141: -1000 | C141: п | D141: 0
A142: 1000 | B142: -1000 | C142: п | D142: 0
A143: 1000 | B143: -1000 | C143: п | D143: 0
A144: 1000 | B144: -1000 | C144: п | D144: 0
A145: 1000 | B145: -1000 | C145: п | D145: 0
A146: 1000 | B146: -1000 | C146: п | D146: 0
A147: 1000 | B147: -1000 | C147: п | D147: 0
A148: 1000 | B148: -1000 | C148: п | D148: 0
A149: 1000 | B149: -1000 | C149: п | D149: 0
A150: 1000 | B150: -1000 | C150: п | D150: 0 | E150: НОЯБРЬ
A151: 1000 | B151: -1000 | C151: п | D151: 0
A152: 1000 | B152: -1000 | C152: п | D152: 0
A153: 1000 | B153: -1000 | C153: п | D153: 0
A154: 1000 | B154: -1000 | C154: п | D154: 0
A155: 1000 | B155: -1000 | C155: п | D155: 0
A156: 1000 | B156: -1000 | C156: п | D156: 0
A157: 1000 | B157: -1000 | C157: п | D157: 0
A158: 1000 | B158: -1000 | C158: п | D158: 0
A159: 1000 | B159: -1000 | C159: п | D159: 0
A160: 1000 | B160: -1000 | C160: п | D160: 0
A161: 1000 | B161: -1000 | C161: п | D161: 0
A162: 1000 | B162: -1000 | C162: п | D162: 0
A163: 1000 | B163: -1000 | C163: п | D163: 0
A164: 1000 | B164: -1000 | C164: п | D164: 0
A165: 1000 | B165: -1000 | C165: п | D165: 0
A166: 1000 | B166: -1000 | C166: п | D166: 0
A167: 1000 | B167: -1000 | C167: п | D167: 0
A168: 1000 | B168: -1000 | C168: п | D168: 0
A169: 1000 | B169: -1000 | C169: п | D169: 0
A170: 1000 | B170: -1000 | C170: п | D170: 0
A171: 1000 | B171: -1000 | C171: п | D171: 0
A172: 1000 | B172: -1000 | C172: п | D172: 0
A173: 1000 | B173: -1000 | C173: п | D173: 0
A174: 1000 | B174: -1000 | C174: п | D174: 0
A175: 1000 | B175: -1000 | C175: п | D175: 0
A176: 1000 | B176: -1000 | C176: п | D176: 0
A177: 1000 | B177: -1000 | C177: п | D177: 0
A178: 1000 | B178: -1000 | C178: п | D178: 0
A179: 1000 | B179: -1000 | C179: п | D179: 0 | E179: ДЕКАБРЬ
A180: 1000 | B180: -1000 | C180: п | D180: 0
A181: 1000 | B181: -1000 | C181: п | D181: 0
A182: 1000 | B182: -1000 | C182: п | D182: 0
A183: 1000 | B183: -1000 | C183: п | D183: 0
A184: 1000 | B184: -1000 | C184: п | D184: 0
A185: 1000 | B185: -1000 | C185: п | D185: 0
A186: 1000 | B186: -1000 | C186: п | D186: 0
A187: 1000 | B187: -1000 | C187: п | D187: 0
A188: 1000 | B188: -1000 | C188: п | D188: 0
A189: 1000 | B189: -1000 | C189: п | D189: 0
A190: 1000 | B190: -1000 | C190: п | D190: 0
A191: 1000 | B191: -1000 | C191: п | D191: 0
A192: 1000 | B192: -1000 | C192: п | D192: 0
A193: 1000 | B193: -1000 | C193: п | D193: 0
A194: 1000 | B194: -1000 | C194: п | D194: 0
A195: 1000 | B195: -1000 | C195: п | D195: 0
A196: 1000 | B196: -1000 | C196: п | D196: 0
A197: 1000 | B197: =D197*A197-A197 -> -1000 | C197: п | D197: 0
A198: 1000 | B198: -1000 | C198: п | D198: 0
A199: 1000 | B199: -1000 | C199: п | D199: 0
A200: 1000 | B200: -1000 | C200: п | D200: 0
... 250 more rows

Sheet ТОТАЛ+ИСХОД НЕДЕЛЯ
D1: поражений | E1: =COUNTIF(C4:C188,"п") -> 19 | F1: побед | G1: =COUNTIF(C4:C188,"В") -> 0
D2: прибыль | E2: =SUM(B:B) -> -19000 | F2: доходность | G2: =G1/(G1+E1)*100 -> 0 | H2: % выигранных матчей | I2: 0 | P2: сумма ставок | Q2: =SUM(A:A) -> 19000
A3: ставка | B3: прибыль/убыток | C3: Матчей | D3: кф
A4: 1000 | B4: =D4*A4-A4 -> -1000 | C4: п | D4: 0 | E4: АПРЕЛЬ
A5: 1000 | B5: -1000 | C5: п | D5: 0
A6: 1000 | B6: -1000 | C6: п | D6: 0
A7: 1000 | B7: -1000 | C7: п | D7: 0 | E7: МАЙ
A8: 1000 | B8: -1000 | C8: п | D8: 0
A9: 1000 | B9: -1000 | C9: п | D9: 0
A10: 1000 | B10: -1000 | C10: п | D10: 0 | E10: ИЮНЬ
A11: 1000 | B11: -1000 | C11: п | D11: 0
A12: 1000 | B12: -1000 | C12: п | D12: 0
A13: 1000 | B13: -1000 | C13: п | D13: 0
A14: 1000 | B14: -1000 | C14: п | D14: 0
A15: 1000 | B15: -1000 | C15: п | D15: 0 | E15: ИЮЛЬ
A16: 1000 | B16: -1000 | C16: п | D16: 0
A17: 1000 | B17: -1000 | C17: п | D17: 0
A18: 1000 | B18: -1000 | C18: п | D18: 0
A19: 1000 | B19: -1000 | C19: п | D19: 0 | E19: АВГУСТ
A20: 1000 | B20: -1000 | C20: п | D20: 0
A21: 1000 | B21: -1000 | C21: п | D21: 0
A22: 1000 | B22: -1000 | C22: п | D22: 0

Sheet ТОТАЛ 100+ НЕДЕЛЯ
D1: поражений | E1: =COUNTIF(C4:C188,"п") -> 19 | F1: побед | G1: =COUNTIF(C4:C188,"В") -> 0
D2: прибыль | E2: =SUM(B:B) -> -19000 | F2: доходность | G2: =G1/(G1+E1)*100 -> 0 | H2: % выигранных матчей | I2: 0 | P2: сумма ставок | Q2: =SUM(A:A) -> 19000
A3: ставка | B3: прибыль/убыток | C3: Матчей | D3: кф
A4: 1000 | B4: =D4*A4-A4 -> -1000 | C4: п | D4: 0 | E4: АПРЕЛЬ
A5: 1000 | B5: -1000 | C5: п | D5: 0
A6: 1000 | B6: -1000 | C6: п | D6: 0
A7: 1000 | B7: -1000 | C7: п | D7: 0 | E7: МАЙ
A8: 1000 | B8: -1000 | C8: п | D8: 0
A9: 1000 | B9: -1000 | C9: п | D9: 0
A10: 1000 | B10: -1000 | C10: п | D10: 0 | E10: ИЮНЬ
A11: 1000 | B11: -1000 | C11: п | D11: 0
A12: 1000 | B12: -1000 | C12: п | D12: 0
A13: 1000 | B13: -1000 | C13: п | D13: 0
A14: 1000 | B14: -1000 | C14: п | D14: 0
A15: 1000 | B15: -1000 | C15: п | D15: 0 | E15: ИЮЛЬ
A16: 1000 | B16: -1000 | C16: п | D16: 0
A17: 1000 | B17: -1000 | C17: п | D17: 0
A18: 1000 | B18: -1000 | C18: п | D18: 0
A19: 1000 | B19: -1000 | C19: п | D19: 0 | E19: АВГУСТ
A20: 1000 | B20: -1000 | C20: п | D20: 0
A21: 1000 | B21: -1000 | C21: п | D21: 0
A22: 1000 | B22: -1000 | C22: п | D22: 0
